[Event "NOR-ch Various 2019"]
[Site "Larvik"]
[Date "2019.07.12"]
[Round "8.29"]
[White "Hagesather, Ellen"]
[Black "Brodtkorb, Lars Johan"]
[Result "1-0"]
[ECO "A01"]
[WhiteElo "2193"]
[BlackElo "2077"]
[Annotator "ChessBase"]
[PlyCount "101"]
[EventDate "2019.07.06"]
[EventType "swiss"]
[EventCountry "NOR"]
[SourceTitle "playchess.com"]
[Source "ChessBase"]
[SourceQuality "1"]
[TimeControl "40/5400+30:1800+30"]

1. b3 {[%emt 0:00:00]} e5 {[%emt 0:05:55]} 2. Bb2 {[%emt 0:00:00]} Nc6 {[%emt 0:00:07]} 3. e3 {[%emt 0:00:06]} Nge7 {[%emt 0:00:14]} 4. d4 {[%emt 0:03:11]} exd4 {[%emt 0:00:09]} 5. exd4 {[%emt 0:00:04]} d5 {[%emt 0:00:07]} 6. Nf3 {[%emt 0:01:34]} Bf5 {[%emt 0:01:28]} 7. Be2 {[%emt 0:04:51]} Qd7 {[%emt 0:01:19]} 8. O-O {[%emt 0:01:09]} f6 {[%emt 0:03:40]} 9. Nc3 {[%emt 0:02:26]} g5 {[%emt 0:01:15]} 10. Na4 {[%emt 0:01:44]} Ng6 {[%emt 0:01:10]} 11. Re1 {[%emt 0:04:39]} O-O-O {[%emt 0:02:56]} 12. Nc5 {[%emt 0:01:58]} Qf7 {[%emt 0:02:07]} 13. Bd3 {[%emt 0:05:09]} Bg4 {[%emt 0:03:52]} 14. Nxg5 {[%emt 0:02:16]} fxg5 {[%emt 0:00:06]} 15. Qxg4+ {[%emt 0:00:08]} Kb8 {[%emt 0:00:03]} 16. Ne6 {[%emt 0:05:34]} Rc8 {[%emt 0:01:46]} 17. Nxg5 {[%emt 0:01:45]} Qf6 {[%emt 0:00:47]} 18. Nxh7 {[%emt 0:03:33]} Rxh7 {[%emt 0:00:18]} 19. Qxg6 {[%emt 0:00:05]} Rh6 {[%emt 0:01:31]} 20. Qxf6 {[%emt 0:00:09]} Rxf6 {[%emt 0:00:01]} 21. c3 {[%emt 0:01:05]} Bd6 {[%emt 0:00:18]} 22. Re2 {[%emt 0:01:34]} Rh8 {[%emt 0:03:58]} 23. h3 {[%emt 0:05:10]} a6 {[%emt 0:02:42]} 24. Rae1 {[%emt 0:00:13]} Ka7 {[%emt 0:00:05]} 25. Re6 {[%emt 0:01:05]} Rf7 {[%emt 0:00:28]} 26. Bc1 {[%emt 0:00:45]} Ne7 {[%emt 0:01:53]} 27. Bg5 {[%emt 0:01:17]} Nf5 {[%emt 0:02:56]} 28. Rf6 {[%emt 0:00:33]} Rxf6 {[%emt 0:00:03]} 29. Bxf6 {[%emt 0:00:06]} Rf8 {[%emt 0:00:02]} 30. Be5 {[%emt 0:00:21]} Nh4 {[%emt 0:00:25]} 31. Bg3 {[%emt 0:01:21]} Nf5 {[%emt 0:00:32]} 32. Bxf5 {[%emt 0:00:24]} Bxg3 {[%emt 0:00:21]} 33. fxg3 {[%emt 0:00:16]} Rxf5 {[%emt 0:00:02]} 34. Re5 {[%emt 0:00:53]} Rf6 {[%emt 0:00:04]} 35. Rxd5 {[%emt 0:00:09]} b5 {[%emt 0:00:26]} 36. g4 {[%emt 0:00:23]} Kb6 {[%emt 0:00:08]} 37. g5 {[%emt 0:00:10]} Re6 {[%emt 0:00:23]} 38. h4 {[%emt 0:01:08]} a5 {[%emt 0:00:03]} 39. h5 {[%emt 0:00:23]} a4 {[%emt 0:00:06]} 40. bxa4 {[%emt 0:00:37]} bxa4 {[%emt 0:00:03]} 41. Re5 {[%emt 0:30:54]} Rc6 {[%emt 0:30:07]} 42. Re3 {[%emt 0:00:14]} a3 {[%emt 0:00:07]} 43. g6 {[%emt 0:00:32]} Rd6 {[%emt 0:00:05]} 44. g7 {[%emt 0:00:13]} Rd8 {[%emt 0:00:05]} 45. h6 {[%emt 0:00:05]} c5 {[%emt 0:00:03]} 46. h7 {[%emt 0:00:24]} c4 {[%emt 0:00:10]} 47. g8=Q {[%emt 0:00:12]} Kb5 {[%emt 0:00:14]} 48. Qxd8 {[%emt 0:00:22]} Ka4 {[%emt 0:00:08]} 49. Qb8 {[%emt 0:00:22]} Ka5 {[%emt 0:00:06]} 50. Re7 {[%emt 0:00:12]} Ka4 {[%emt 0:00:03]} 51. Ra7# {[%emt 0:00:05]} 1-0

[Event "NOR-ch Various 2019"]
[Site "Larvik"]
[Date "2019.07.12"]
[Round "8.30"]
[White "Andersen, Lars Even"]
[Black "Thanke, Bror"]
[Result "1-0"]
[ECO "E04"]
[WhiteElo "2314"]
[BlackElo "2191"]
[Annotator "NA"]
[PlyCount "101"]
[EventDate "2019.07.06"]
[EventType "swiss"]
[EventCountry "NOR"]
[SourceTitle "playchess.com"]
[Source "ChessBase"]
[SourceQuality "1"]
[TimeControl "40/5400+30:1800+30"]

1. d4 {[%emt 0:01:36]} Nf6 {[%emt 0:00:00]} 2. Nf3 {[%emt 0:01:59]} e6 {[%emt 0:00:02]} 3. g3 {[%emt 0:00:20]} d5 {[%emt 0:01:18]} 4. Bg2 {[%emt 0:00:20]} c5 {[%emt 0:02:28]} 5. O-O {[%emt 0:01:18]} Nc6 {[%emt 0:01:30]} 6. c4 {[%emt 0:01:15]} dxc4 {[%emt 0:01:15]} 7. Qa4 {[%emt 0:00:55]} Nd5 {[%emt 0:15:58]} 8. dxc5 {[%emt 0:08:52]} Bxc5 {[%emt 0:03:00]} 9. Qxc4 {[%emt 0:11:05]} Be7 {[%emt 0:01:19]} 10. Rd1 {[%emt 0:02:35]} Qc7 {[%emt 0:08:00]} 11. Nc3 {[%emt 0:11:23]} Nxc3 {[%emt 0:03:25]} 12. Qxc3 {[%emt 0:02:35]} Bf6 {[%emt 0:01:54]} 13. Qc2 {[%emt 0:01:24]} O-O {[%emt 0:11:05]} 14. Nd4 {[%emt 0:04:30]} Rd8 {[%emt 0:11:01]} 15. Be3 {[%emt 0:10:14]} Bxd4 {[%emt 0:10:58]} 16. Bxd4 {[%emt 0:04:56]} Bd7 {[%emt 0:00:24]} 17. Rac1 {[%emt 0:09:50]} Be8 {[%emt 0:04:22]} 18. Qc5 {[%emt 0:06:57]} Qd6 {[%emt 0:08:00]} 19. Qxd6 {[%emt 0:01:34]} Rxd6 {[%emt 0:00:02]} 20. Bc5 {[%emt 0:01:03]} Rxd1+ {[%emt 0:01:13]} 21. Rxd1 {[%emt 0:00:07]} a6 {[%emt 0:01:02]} 22. Bb6 {[%emt 0:03:28]} h6 {[%emt 0:02:49]} 23. h4 {[%emt 0:02:27]} Kf8 {[%emt 0:01:30]} 24. Bc5+ {[%emt 0:02:11]} Kg8 {[%emt 0:00:05]} 25. Kf1 {[%emt 0:02:21]} Rc8 {[%emt 0:01:09]} 26. Bb6 {[%emt 0:02:19]} Kf8 {[%emt 0:01:08]} 27. Rc1 {[%emt 0:01:21]} Bd7 {[%emt 0:00:56]} 28. a4 {[%emt 0:01:06]} Ke8 {[%emt 0:00:26]} 29. a5 {[%emt 0:00:33]} Ne7 {[%emt 0:02:29]} 30. Rxc8+ Bxc8 {[%emt 0:00:07]} 31. Ke1 {[%emt 0:03:02]} Kd7 {[%emt 0:01:09]} 32. e4 {[%emt 0:00:54]} Nc6 {[%emt 0:00:22]} 33. f4 {[%emt 0:00:25]} f6 {[%emt 0:00:34]} 34. h5 {[%emt 0:00:23]} Kd6 {[%emt 0:00:32]} 35. Kd2 {[%emt 0:01:17]} e5 {[%emt 0:00:19]} 36. Bf3 {[%emt 0:00:48]} Bd7 {[%emt 0:01:59]} 37. Kc3 {[%emt 0:00:19]} Be8 {[%emt 0:03:41]} 38. b4 {[%emt 0:00:15]} g6 {[%emt 0:00:53]} 39. Bc5+ {[%emt 0:00:46]} Kc7 {[%emt 0:00:20]} 40. hxg6 Bxg6 {[%emt 0:00:17]} 41. f5 {[%emt 0:03:58]} Be8 {[%emt 0:02:47]} 42. Bd1 {[%emt 0:03:38]} h5 {[%emt 0:05:43]} 43. Bb3 {[%emt 0:01:40]} Kd7 {[%emt 0:08:03]} 44. Be6+ {[%emt 0:00:47]} Kd8 {[%emt 0:00:25]} 45. Bb6+ {[%emt 0:01:05]} Ke7 {[%emt 0:01:21]} 46. Bc8 {[%emt 0:00:33]} Nd8 {[%emt 0:02:07]} 47. Bxd8+ {[%emt 0:00:58]} Kxd8 {[%emt 0:00:06]} 48. Bxb7 {[%emt 0:00:06]} Bb5 {[%emt 0:00:24]} 49. Bd5 {[%emt 0:00:14]} Kc7 {[%emt 0:01:27]} 50. Bc4 {[%emt 0:01:24]} Bc6 {[%emt 0:00:34]} 51. Kd3 {[%emt 0:00:15]} 1-0

[Event "NOR-ch Various 2019"]
[Site "Larvik"]
[Date "2019.07.12"]
[Round "8.31"]
[White "Hole, Oystein"]
[Black "Demac, Elias"]
[Result "1-0"]
[ECO "E97"]
[WhiteElo "2293"]
[BlackElo "2215"]
[Annotator "NA"]
[PlyCount "59"]
[EventDate "2019.07.06"]
[EventType "swiss"]
[EventCountry "NOR"]
[SourceTitle "playchess.com"]
[Source "ChessBase"]
[SourceQuality "1"]
[TimeControl "40/5400+30:1800+30"]

1. Nf3 {[%emt 0:00:00]} Nf6 {[%emt 0:00:00]} 2. c4 {[%emt 0:00:00]} g6 {[%emt 0:00:02]} 3. Nc3 {[%emt 0:00:00]} Bg7 {[%emt 0:00:08]} 4. e4 {[%emt 0:00:00]} d6 {[%emt 0:00:06]} 5. d4 {[%emt 0:00:01]} O-O {[%emt 0:00:09]} 6. Be2 {[%emt 0:00:08]} e5 {[%emt 0:00:06]} 7. O-O {[%emt 0:00:09]} Nc6 {[%emt 0:00:06]} 8. d5 {[%emt 0:00:11]} Ne7 {[%emt 0:00:08]} 9. b4 {[%emt 0:00:09]} Nh5 {[%emt 0:00:07]} 10. g3 {[%emt 0:00:28]} f5 {[%emt 0:01:21]} 11. Ng5 {[%emt 0:00:10]} Nf6 {[%emt 0:00:07]} 12. Bf3 {[%emt 0:00:09]} f4 {[%emt 0:00:50]} 13. c5 {[%emt 0:20:38]} h6 {[%emt 0:16:32]} 14. Ne6 {[%emt 0:00:54]} Bxe6 {[%emt 0:01:39]} 15. dxe6 {[%emt 0:00:02]} d5 {[%emt 0:11:23]} 16. exd5 {[%emt 0:16:59]} e4 {[%emt 0:00:32]} 17. Nxe4 {[%emt 0:00:13]} Nfxd5 {[%emt 0:06:11]} 18. Rb1 {[%emt 0:00:13]} fxg3 {[%emt 0:01:02]} 19. hxg3 {[%emt 0:00:50]} a5 {[%emt 0:20:06]} 20. b5 {[%emt 0:02:31]} Nb4 {[%emt 0:05:21]} 21. Rb3 {[%emt 0:15:38]} Qe8 {[%emt 0:03:54]} 22. Qd7 {[%emt 0:12:55]} Nf5 {[%emt 0:02:18]} 23. Bg4 {[%emt 0:01:24]} Nd4 {[%emt 0:05:14]} 24. Re3 {[%emt 0:06:04]} h5 {[%emt 0:01:17]} 25. Bh3 {[%emt 0:00:32]} Qxd7 {[%emt 0:04:31]} 26. exd7 {[%emt 0:00:03]} Nxa2 {[%emt 0:00:35]} 27. Bb2 {[%emt 0:05:23]} Nb4 {[%emt 0:02:10]} 28. Ng5 {[%emt 0:00:38]} Nf3+ {[%emt 0:02:32]} 29. Rxf3 {[%emt 0:01:41]} Rxf3 {[%emt 0:00:11]} 30. Bxg7 {[%emt 0:00:12]} 1-0

[Event "NOR-ch Various 2019"]
[Site "Larvik"]
[Date "2019.07.12"]
[Round "8.32"]
[White "Abdrlauf, Elham"]
[Black "Esbensen, Arnt"]
[Result "0-1"]
[ECO "C28"]
[WhiteElo "2235"]
[BlackElo "2153"]
[Annotator "NA"]
[PlyCount "68"]
[EventDate "2019.07.06"]
[EventType "swiss"]
[EventCountry "NOR"]
[SourceTitle "playchess.com"]
[Source "ChessBase"]
[SourceQuality "1"]
[TimeControl "40/5400+30:1800+30"]

1. e4 {[%emt 0:00:00]} e5 {[%emt 0:00:00]} 2. Nc3 {[%emt 0:00:00]} d6 {[%emt 0:01:27]} 3. Bc4 {[%emt 0:00:10]} Nf6 {[%emt 0:00:59]} 4. d3 {[%emt 0:01:05]} Be7 {[%emt 0:00:26]} 5. f4 {[%emt 0:00:21]} Nc6 {[%emt 0:02:23]} 6. Nf3 {[%emt 0:02:39]} Bg4 {[%emt 0:04:42]} 7. O-O {[%emt 0:07:41]} O-O {[%emt 0:02:15]} 8. h3 {[%emt 0:02:33]} Bxf3 {[%emt 0:00:24]} 9. Qxf3 {[%emt 0:00:34]} Na5 {[%emt 0:03:55]} 10. f5 {[%emt 0:00:12]} Nxc4 {[%emt 0:01:17]} 11. dxc4 {[%emt 0:00:02]} c6 {[%emt 0:08:53]} 12. g4 {[%emt 0:00:32]} h6 {[%emt 0:05:47]} 13. g5 {[%emt 0:03:18]} hxg5 {[%emt 0:01:13]} 14. Bxg5 {[%emt 0:00:03]} Nh7 {[%emt 0:01:19]} 15. Be3 {[%emt 0:01:26]} Bg5 {[%emt 0:02:21]} 16. Bf2 {[%emt 0:03:34]} Qf6 {[%emt 0:11:06]} 17. Kh1 {[%emt 0:12:10]} Qh6 {[%emt 0:02:11]} 18. Rg1 {[%emt 0:01:41]} Kh8 {[%emt 0:02:50]} 19. Rg2 {[%emt 0:07:15]} Bf4 {[%emt 0:04:31]} 20. h4 {[%emt 0:05:30]} g5 {[%emt 0:03:39]} 21. Ne2 {[%emt 0:01:35]} Rg8 {[%emt 0:01:11]} 22. Rd1 {[%emt 0:10:12]} Rad8 {[%emt 0:04:31]} 23. Kg1 {[%emt 0:10:01]} g4 {[%emt 0:04:50]} 24. Qa3 {[%emt 0:00:00]} g3 {[%emt 0:04:34]} 25. Bxg3 {[%emt 0:06:29]} Bxg3 {[%emt 0:06:20]} 26. Nxg3 {[%emt 0:01:33]} Rg4 {[%emt 0:01:27]} 27. c5 {[%emt 0:00:00]} d5 {[%emt 0:01:12]} 28. exd5 {[%emt 0:00:00]} cxd5 {[%emt 0:01:54]} 29. Qf3 {[%emt 0:00:00]} Rdg8 {[%emt 0:02:57]} 30. Re1 {[%emt 0:00:00]} Qxh4 {[%emt 0:01:09]} 31. Re3 {[%emt 0:00:00]} d4 {[%emt 0:02:14]} 32. Rb3 {[%emt 0:00:39]} e4 {[%emt 0:00:48]} 33. Qd1 {[%emt 0:00:01]} d3 {[%emt 0:00:27]} 34. Qe1 {[%emt 0:00:21]} Rxg3 {[%emt 0:00:20]} 0-1

[Event "NOR-ch Various 2019"]
[Site "Larvik"]
[Date "2019.07.12"]
[Round "8.33"]
[White "Holleland, Sigve"]
[Black "Martinsen, Stig K"]
[Result "0-1"]
[ECO "B06"]
[WhiteElo "2092"]
[BlackElo "2177"]
[Annotator "NA"]
[PlyCount "50"]
[EventDate "2019.07.06"]
[EventType "swiss"]
[EventCountry "NOR"]
[SourceTitle "playchess.com"]
[Source "ChessBase"]
[SourceQuality "1"]
[TimeControl "40/5400+30:1800+30"]

1. d4 {[%emt 0:00:34]} g6 {[%emt 0:00:57]} 2. e4 {[%emt 0:02:46]} Bg7 {[%emt 0:00:22]} 3. f4 {[%emt 0:00:23]} d6 {[%emt 0:00:29]} 4. a3 {[%emt 0:01:04]} Nd7 {[%emt 0:05:06]} 5. Nf3 {[%emt 0:03:42]} c5 {[%emt 0:02:49]} 6. d5 {[%emt 0:01:31]} a6 {[%emt 0:08:43]} 7. c4 {[%emt 0:03:29]} Ngf6 {[%emt 0:14:33]} 8. Nc3 {[%emt 0:01:23]} O-O {[%emt 0:01:36]} 9. h3 {[%emt 0:03:14]} b5 {[%emt 0:01:33]} 10. cxb5 {[%emt 0:03:50]} axb5 {[%emt 0:08:26]} 11. Bxb5 {[%emt 0:04:42]} Nxe4 {[%emt 0:06:12]} 12. Nxe4 {[%emt 0:00:38]} Qa5+ {[%emt 0:00:06]} 13. Nc3 {[%emt 0:00:23]} Bxc3+ {[%emt 0:00:09]} 14. bxc3 {[%emt 0:00:04]} Qxb5 {[%emt 0:00:20]} 15. Kf2 {[%emt 0:03:34]} Nf6 {[%emt 0:05:45]} 16. Re1 {[%emt 0:00:13]} Re8 {[%emt 0:03:47]} 17. c4 {[%emt 0:03:51]} Qxc4 {[%emt 0:03:32]} 18. Bb2 {[%emt 0:00:49]} Qxf4 {[%emt 0:07:01]} 19. Qd3 {[%emt 0:03:38]} Nh5 {[%emt 0:04:18]} 20. g4 {[%emt 0:06:00]} Qg3+ {[%emt 0:03:29]} 21. Ke3 {[%emt 0:00:07]} Nf4 {[%emt 0:00:44]} 22. Qc4 {[%emt 0:02:41]} Ng2+ {[%emt 0:00:39]} 23. Kd2 {[%emt 0:00:07]} Qxf3 {[%emt 0:03:29]} 24. Rf1 {[%emt 0:00:27]} Qe3+ {[%emt 0:01:15]} 25. Kc2 {[%emt 0:00:14]} Ba6 {[%emt 0:02:29]} 0-1

[Event "NOR-ch Various 2019"]
[Site "Larvik"]
[Date "2019.07.12"]
[Round "8.34"]
[White "Huse, Sigurd Kjelsbol"]
[Black "Lund, Gunnar"]
[Result "1/2-1/2"]
[ECO "B38"]
[WhiteElo "2122"]
[BlackElo "2285"]
[Annotator "NA"]
[PlyCount "64"]
[EventDate "2019.07.06"]
[EventType "swiss"]
[EventCountry "NOR"]
[SourceTitle "playchess.com"]
[Source "ChessBase"]
[SourceQuality "1"]
[TimeControl "40/5400+30:1800+30"]

1. e4 {[%emt 0:00:00]} c5 {[%emt 0:00:00]} 2. Nf3 {[%emt 0:00:00]} g6 {[%emt 0:00:00]} 3. d4 {[%emt 0:00:39]} cxd4 {[%emt 0:00:02]} 4. Nxd4 {[%emt 0:00:05]} Bg7 {[%emt 0:00:06]} 5. c4 {[%emt 0:01:38]} Nc6 {[%emt 0:01:54]} 6. Be3 {[%emt 0:02:34]} Nf6 {[%emt 0:06:15]} 7. Nc3 {[%emt 0:00:39]} O-O {[%emt 0:01:02]} 8. Be2 {[%emt 0:00:59]} d6 {[%emt 0:00:32]} 9. O-O {[%emt 0:00:44]} Bd7 {[%emt 0:00:26]} 10. h3 {[%emt 0:03:02]} a6 {[%emt 0:02:11]} 11. Qd2 {[%emt 0:00:20]} Rb8 {[%emt 0:16:05]} 12. a4 {[%emt 0:02:59]} Rc8 {[%emt 0:00:47]} 13. b3 {[%emt 0:08:52]} Qa5 {[%emt 0:09:31]} 14. Rfd1 {[%emt 0:02:46]} Rfe8 {[%emt 0:03:47]} 15. Rab1 {[%emt 0:02:33]} Qc7 {[%emt 0:04:52]} 16. Rbc1 {[%emt 0:04:21]} Qb8 {[%emt 0:00:08]} 17. f3 {[%emt 0:02:27]} Nh5 {[%emt 0:04:41]} 18. Nd5 {[%emt 0:02:29]} Ng3 {[%emt 0:03:33]} 19. Kf2 {[%emt 0:04:44]} Nxd4 {[%emt 0:06:34]} 20. Bxd4 {[%emt 0:00:18]} Nxe2 {[%emt 0:00:08]} 21. Kxe2 {[%emt 0:02:26]} Be6 {[%emt 0:17:56]} 22. Bxg7 {[%emt 0:02:56]} Bxd5 {[%emt 0:01:35]} 23. cxd5 {[%emt 0:05:06]} Kxg7 {[%emt 0:00:23]} 24. Rc3 {[%emt 0:01:35]} f6 {[%emt 0:06:19]} 25. Rdc1 {[%emt 0:00:13]} Kf7 {[%emt 0:00:36]} 26. Qc2 {[%emt 0:03:46]} Rxc3 {[%emt 0:00:03]} 27. Qxc3 {[%emt 0:00:06]} Qd8 {[%emt 0:00:12]} 28. Qc7 {[%emt 0:03:40]} Qxc7 {[%emt 0:00:18]} 29. Rxc7 {[%emt 0:00:01]} Rb8 {[%emt 0:00:12]} 30. b4 {[%emt 0:00:19]} Ke8 {[%emt 0:03:31]} 31. Ke3 {[%emt 0:03:05]} Kd8 {[%emt 0:00:24]} 32. Rc1 {[%emt 0:00:17]} Rc8 {[%emt 0:01:10]} 1/2-1/2

[Event "NOR-ch Various 2019"]
[Site "Larvik"]
[Date "2019.07.12"]
[Round "8.35"]
[White "Shehzad, Shazil"]
[Black "Moen, Ole Christian"]
[Result "1-0"]
[ECO "C42"]
[WhiteElo "2088"]
[BlackElo "2234"]
[Annotator "NA"]
[PlyCount "157"]
[EventDate "2019.07.06"]
[EventType "swiss"]
[EventCountry "NOR"]
[SourceTitle "playchess.com"]
[Source "ChessBase"]
[SourceQuality "1"]
[TimeControl "40/5400+30:1800+30"]

1. e4 {[%emt 0:06:18]} e5 {[%emt 0:00:00]} 2. Nf3 {[%emt 0:00:12]} Nf6 {[%emt 0:01:44]} 3. Nxe5 {[%emt 0:00:18]} d6 {[%emt 0:00:14]} 4. Nf3 {[%emt 0:00:04]} Nxe4 {[%emt 0:00:04]} 5. Nc3 {[%emt 0:00:12]} Nxc3 {[%emt 0:00:04]} 6. dxc3 {[%emt 0:00:06]} Nc6 {[%emt 0:00:57]} 7. Be3 {[%emt 0:00:15]} Be7 {[%emt 0:00:58]} 8. Qd2 {[%emt 0:01:16]} Bg4 {[%emt 0:01:11]} 9. O-O-O {[%emt 0:03:17]} Qd7 {[%emt 0:06:18]} 10. h3 {[%emt 0:01:15]} Bxf3 {[%emt 0:00:17]} 11. gxf3 {[%emt 0:00:05]} Bf6 {[%emt 0:00:55]} 12. f4 {[%emt 0:01:51]} O-O {[%emt 0:03:21]} 13. h4 {[%emt 0:02:58]} Qf5 {[%emt 0:05:25]} 14. Bd3 {[%emt 0:02:13]} Qa5 {[%emt 0:01:49]} 15. a3 {[%emt 0:02:05]} d5 {[%emt 0:04:34]} 16. Qe2 {[%emt 0:08:37]} Rad8 {[%emt 0:06:12]} 17. Qh5 {[%emt 0:03:56]} g6 {[%emt 0:00:10]} 18. Qg4 {[%emt 0:00:58]} h5 {[%emt 0:05:32]} 19. Qg2 {[%emt 0:01:45]} d4 {[%emt 0:00:55]} 20. cxd4 {[%emt 0:06:38]} Nxd4 {[%emt 0:02:51]} 21. Bxd4 {[%emt 0:02:13]} Rxd4 {[%emt 0:08:06]} 22. f5 {[%emt 0:03:25]} Qb6 {[%emt 0:10:58]} 23. c3 {[%emt 0:03:11]} Rg4 {[%emt 0:04:30]} 24. Qf3 {[%emt 0:01:48]} Bxh4 {[%emt 0:03:44]} 25. fxg6 {[%emt 0:03:03]} fxg6 {[%emt 0:00:18]} 26. Bc4+ {[%emt 0:02:23]} Rxc4 {[%emt 0:02:15]} 27. Qd5+ {[%emt 0:00:15]} Rf7 {[%emt 0:01:36]} 28. Qxc4 {[%emt 0:00:34]} Bg5+ {[%emt 0:01:31]} 29. Kb1 {[%emt 0:04:32]} Kg7 {[%emt 0:02:27]} 30. Rhf1 {[%emt 0:02:46]} Bf4 {[%emt 0:01:08]} 31. Rd4 {[%emt 0:01:50]} Qf6 {[%emt 0:00:33]} 32. Ka1 {[%emt 0:02:29]} h4 {[%emt 0:02:03]} 33. Qd3 {[%emt 0:03:39]} Qf5 {[%emt 0:00:35]} 34. Qf3 {[%emt 0:04:21]} h3 {[%emt 0:00:59]} 35. Rh1 {[%emt 0:04:02]} h2 {[%emt 0:00:36]} 36. Qg2 {[%emt 0:09:10]} a5 {[%emt 0:03:52]} 37. f3 {[%emt 0:03:17]} Bd6 {[%emt 0:01:30]} 38. Rxd6 {[%emt 0:00:29]} cxd6 {[%emt 0:00:06]} 39. Qxh2 {[%emt 0:00:09]} Qh5 {[%emt 0:02:37]} 40. Qxh5 {[%emt 0:00:16]} gxh5 {[%emt 0:00:06]} 41. Rxh5 {[%emt 0:30:07]} Rxf3 {[%emt 0:30:06]} 42. Rxa5 {[%emt 0:00:09]} Rf7 {[%emt 0:01:06]} 43. Rb5 {[%emt 0:01:39]} Kf8 {[%emt 0:36:27]} 44. Rb6 {[%emt 0:04:27]} Rd7 45. Ka2 {[%emt 0:04:48]} Ke8 {[%emt 0:00:00]} 46. Kb3 {[%emt 0:00:30]} Kd8 47. Rb4 Kc7 {[%emt 0:00:00]} 48. Rh4 {[%emt 0:01:00]} Rg7 {[%emt 0:00:00]} 49. Kc4 {[%emt 0:00:30]} Kc6 {[%emt 0:00:00]} 50. b4 {[%emt 0:00:30]} b5+ {[%emt 0:00:00]} 51. Kb3 {[%emt 0:00:30]} Rg3 {[%emt 0:00:00]} 52. Rh7 {[%emt 0:00:30]} Rf3 {[%emt 0:00:00]} 53. Rh8 {[%emt 0:00:30]} Kb7 {[%emt 0:00:00]} 54. Rd8 {[%emt 0:00:30]} Kc7 {[%emt 0:00:00]} 55. Rh8 {[%emt 0:00:30]} Rg3 {[%emt 0:00:00]} 56. Rh1 {[%emt 0:00:30]} Kc6 {[%emt 0:00:00]} 57. Rd1 {[%emt 0:00:30]} Rh3 {[%emt 0:00:00]} 58. Rc1 {[%emt 0:00:30]} Kd5 {[%emt 0:00:00]} 59. Rd1+ {[%emt 0:00:00]} Kc6 {[%emt 0:00:00]} 60. Ra1 {[%emt 0:00:00]} d5 {[%emt 0:00:00]} 61. Rd1 {[%emt 0:00:00]} Rg3 {[%emt 0:00:00]} 62. Kc2 {[%emt 0:00:00]} Rh3 {[%emt 0:00:00]} 63. Rd3 {[%emt 0:00:00]} Rh2+ {[%emt 0:00:00]} 64. Kb3 {[%emt 0:00:00]} Rh1 {[%emt 0:00:00]} 65. Rg3 {[%emt 0:00:00]} Rb1+ {[%emt 0:00:00]} 66. Kc2 {[%emt 0:00:00]} Ra1 {[%emt 0:00:00]} 67. Rg6+ {[%emt 0:00:00]} Kb7 {[%emt 0:00:00]} 68. Kd3 {[%emt 0:00:00]} Rd1+ {[%emt 0:00:00]} 69. Ke3 {[%emt 0:00:00]} d4+ {[%emt 0:00:00]} 70. cxd4 {[%emt 0:00:00]} Ra1 {[%emt 0:00:00]} 71. d5 {[%emt 0:00:00]} Rxa3+ {[%emt 0:00:00]} 72. Kd4 {[%emt 0:00:00]} Ra1 {[%emt 0:00:00]} 73. Kc5 {[%emt 0:00:00]} Rd1 {[%emt 0:00:00]} 74. Rg5 {[%emt 0:00:00]} Ka6 {[%emt 0:00:00]} 75. Rg6+ {[%emt 0:00:00]} Kb7 {[%emt 0:00:00]} 76. d6 {[%emt 0:00:00]} Rh1 {[%emt 0:00:00]} 77. Rg5 {[%emt 0:00:00]} Kc8 {[%emt 0:00:00]} 78. Kc6 {[%emt 0:00:00]} Rc1+ {[%emt 0:00:00]} 79. Rc5 {[%emt 0:00:00]} 1-0

[Event "NOR-ch Various 2019"]
[Site "Larvik"]
[Date "2019.07.12"]
[Round "8.36"]
[White "Fossan, Aleksander"]
[Black "Kristiansen, Willy M"]
[Result "0-1"]
[ECO "C55"]
[WhiteElo "2155"]
[BlackElo "2118"]
[Annotator "NA"]
[PlyCount "98"]
[EventDate "2019.07.06"]
[EventType "swiss"]
[EventCountry "NOR"]
[SourceTitle "playchess.com"]
[Source "ChessBase"]
[SourceQuality "1"]
[TimeControl "40/5400+30:1800+30"]

1. e4 {[%emt 0:00:00]} e5 {[%emt 0:03:15]} 2. Nf3 {[%emt 0:00:00]} Nc6 {[%emt 0:00:16]} 3. Bc4 {[%emt 0:00:07]} Bc5 {[%emt 0:00:13]} 4. d3 {[%emt 0:00:15]} Nf6 {[%emt 0:00:44]} 5. Nc3 {[%emt 0:00:19]} O-O {[%emt 0:03:00]} 6. O-O {[%emt 0:01:47]} a6 {[%emt 0:01:58]} 7. Be3 {[%emt 0:03:10]} Bxe3 {[%emt 0:02:18]} 8. fxe3 {[%emt 0:00:02]} d6 {[%emt 0:00:23]} 9. Qe1 {[%emt 0:06:45]} Ne7 {[%emt 0:02:33]} 10. Ne2 {[%emt 0:07:27]} c6 {[%emt 0:04:06]} 11. Bb3 {[%emt 0:00:52]} Ng6 {[%emt 0:13:07]} 12. Ng3 {[%emt 0:09:33]} Be6 {[%emt 0:00:40]} 13. Nd2 {[%emt 0:11:25]} Bxb3 {[%emt 0:00:57]} 14. axb3 {[%emt 0:02:15]} d5 {[%emt 0:02:16]} 15. h3 {[%emt 0:08:45]} dxe4 {[%emt 0:07:23]} 16. Ndxe4 {[%emt 0:02:06]} Nxe4 {[%emt 0:01:19]} 17. Nxe4 {[%emt 0:01:52]} f5 {[%emt 0:00:43]} 18. Nd2 {[%emt 0:00:54]} Qe7 {[%emt 0:04:48]} 19. d4 {[%emt 0:09:02]} Rae8 {[%emt 0:02:16]} 20. Nc4 {[%emt 0:10:00]} exd4 {[%emt 0:09:32]} 21. exd4 {[%emt 0:00:21]} Qd7 {[%emt 0:04:43]} 22. Qf2 {[%emt 0:02:13]} f4 {[%emt 0:01:13]} 23. Rae1 {[%emt 0:01:58]} Rxe1 {[%emt 0:00:58]} 24. Rxe1 {[%emt 0:00:02]} f3 {[%emt 0:00:49]} 25. Ne5 {[%emt 0:01:21]} Nxe5 {[%emt 0:03:14]} 26. dxe5 {[%emt 0:00:01]} Qe6 {[%emt 0:07:00]} 27. gxf3 {[%emt 0:03:04]} Qxh3 {[%emt 0:08:01]} 28. Re3 {[%emt 0:00:00]} Rf5 {[%emt 0:01:26]} 29. Qg2 {[%emt 0:04:54]} Qh5 {[%emt 0:03:12]} 30. f4 {[%emt 0:03:42]} Rxf4 {[%emt 0:01:42]} 31. e6 {[%emt 0:01:26]} Rg4 {[%emt 0:02:34]} 32. Rg3 {[%emt 0:00:04]} Rxg3 {[%emt 0:00:41]} 33. Qxg3 {[%emt 0:00:01]} Qg6 34. Qxg6 {[%emt 0:00:30]} hxg6 35. Kg2 {[%emt 0:00:30]} Kf8 36. Kg3 {[%emt 0:00:30]} Ke7 37. Kg4 {[%emt 0:00:30]} Kf6 38. e7 {[%emt 0:00:30]} Kxe7 39. Kg5 {[%emt 0:00:30]} Kf7 40. b4 {[%emt 0:00:30]} b6 41. c3 {[%emt 0:30:30]} a5 42. bxa5 {[%emt 0:00:30]} bxa5 43. b3 {[%emt 0:00:30]} c5 44. c4 {[%emt 0:00:30]} Ke6 45. Kxg6 {[%emt 0:00:30]} Ke5 46. Kxg7 {[%emt 0:00:30]} Kd4 47. Kf6 {[%emt 0:00:30]} Kc3 48. Ke6 {[%emt 0:00:30]} Kxb3 49. Kd5 {[%emt 0:00:30]} Kb4 0-1